bitfinex/quotes_ETHUSD_20251218
["timestamp","ask_amount","ask_price","bid_price","bid_amount"]
[1766085126236,0.32332361,2830.4,2829.3,5.3537]
[1766085126237,0.2452,2830.4,2829.3,5.3537]
[1766085126410,0.2452,2830.4,2829.0,0.405504]
[1766085126411,5.2454,2830.4,2829.0,0.405504]
[1766085126597,5.2454,2830.2,2829.2,0.578]
[1766085126798,2.451,2829.8,2828.9,1.04238023]
[1766085127121,7.6964,2829.8,2828.9,0.578]
[1766085127325,8.2744,2829.8,2828.9,0.578]
[1766085127498,8.2744,2829.8,2828.9,0.76629]
[1766085127701,8.2744,2829.8,2828.9,0.18829]
[1766085127900,0.578,2829.8,2828.3,3.53566998]
[1766085128100,0.578,2829.8,2828.1,3.53782417]
[1766085128101,2.451,2829.5,2828.1,0.46638023]
[1766085128298,7.6964,2829.3,2828.4,3.53548733]
[1766085128541,2.451,2829.2,2828.4,3.53548733]
[1766085128944,7.6964,2829.3,2828.1,0.46638023]
[1766085129233,0.578,2829.4,2828.4,3.53548043]
[1766085129234,5.2454,2829.1,2828.4,3.53548043]
[1766085129606,5.2454,2829.1,2828.3,3.53564889]
[1766085130440,7.6964,2828.9,2828.2,0.46438023]
[1766085130604,7.6964,2828.9,2828.2,4.00017657]
[1766085131139,7.6964,2828.9,2828.1,0.002]
[1766085131140,2.451,2828.8,2828.1,0.46638023]
[1766085131339,3.029,2828.8,2828.1,4.00229648]
[1766085131649,3.029,2828.8,2828.1,0.002]
[1766085132143,3.029,2828.8,2828.1,3.53792672]
[1766085132549,3.029,2828.8,2828.1,0.002]
[1766085132830,2.4723,2828.6,2827.7,0.578]
[1766085133051,1.40544,2828.8,2827.7,0.578]
[1766085133052,5.2359,2828.5,2827.7,0.578]
[1766085133223,7.7082,2828.4,2827.8,0.46438023]
[1766085133424,2.4723,2828.3,2827.5,3.53663796]
[1766085133624,7.7082,2828.2,2827.3,0.58]
[1766085133925,0.24723,2828.3,2827.5,7.53776661]
[1766085134134,2.71953,2828.3,2827.4,3.5367781]
[1766085134348,7.7082,2828.1,2827.3,4.11690828]
[1766085134537,0.24723,2828.3,2827.3,4.11690828]
[1766085134741,7.7082,2828.0,2827.3,4.11690828]
[1766085134946,2.4723,2827.9,2827.3,0.002]
[1766085135132,2.4723,2827.9,2827.5,0.002]
[1766085136627,0.578,2828.0,2827.2,0.002]
[1766085136954,7.7082,2827.7,2827.2,0.002]
[1766085137158,2.4723,2827.7,2827.2,0.002]
[1766085137345,3.53560117,2828.4,2827.0,0.002]
[1766085137346,2.4723,2827.9,2827.0,0.002]
[1766085137658,2.4723,2827.6,2827.0,0.002]
[1766085137838,7.7082,2827.5,2827.0,0.002]
[1766085138774,2.4723,2827.7,2826.7,0.46638023]
[1766085138943,2.4723,2827.7,2826.5,0.002]
[1766085138944,2.4723,2827.0,2826.5,0.002]
[1766085139251,5.2359,2826.9,2826.4,0.002]
[1766085139437,2.4723,2826.8,2826.4,0.002]
[1766085139838,2.4723,2826.8,2826.1,0.002]
[1766085140364,7.7082,2826.6,2826.1,0.002]
[1766085141558,2.4723,2826.5,2826.1,0.002]
[1766085141763,7.7082,2826.5,2825.9,0.002]
[1766085142052,0.82862,2826.6,2825.9,0.002]
[1766085142053,7.7082,2826.4,2825.9,0.002]
[1766085142354,7.7082,2826.4,2825.6,7.07813922]
[1766085142355,2.4723,2826.3,2825.6,0.46438023]
[1766085142562,2.4723,2826.2,2825.6,0.46438023]
[1766085143066,7.7082,2826.1,2825.4,0.002]
[1766085143360,2.4723,2825.8,2825.4,0.002]
[1766085143728,2.4723,2825.8,2825.0,0.578]
[1766085143729,5.2359,2825.7,2825.0,0.578]
[1766085143929,7.70220001,2825.7,2825.2,0.46438023]
[1766085144130,2.4723,2825.6,2825.0,3.5398086]
[1766085144330,0.578,2826.0,2825.0,3.5398086]
[1766085144573,2.4723,2825.9,2825.0,3.5398086]
[1766085144733,2.77733,2825.9,2825.0,3.53980961]
[1766085145048,2.77733,2825.9,2824.9,0.46638023]
[1766085145228,2.77733,2825.9,2825.0,3.53981384]
[1766085145558,2.77733,2825.9,2824.9,3.5419291]
[1766085145767,2.77733,2825.9,2825.0,3.53979476]
[1766085146076,2.4723,2825.8,2824.9,0.46638023]
[1766085146270,2.4723,2825.7,2824.9,0.46638023]
[1766085147141,5.2359,2825.6,2824.9,0.002]
[1766085147470,0.335533,2825.8,2824.9,0.002]
[1766085147639,0.578,2825.7,2824.9,5.2438]
[1766085147828,0.578,2825.7,2824.9,6.43432231]
[1766085148032,0.335533,2825.8,2825.0,3.539823]
[1766085148234,0.48362761,2826.5,2825.1,5.70618023]
[1766085148235,0.07812361,2826.5,2825.1,5.70618023]
[1766085148543,0.578,2826.7,2825.4,0.405504]
[1766085148738,0.578,2826.7,2825.6,0.46438023]
[1766085148739,8.2862,2826.7,2825.6,0.46438023]
[1766085149269,0.578,2826.7,2825.5,0.578]
[1766085149565,5.70028023,2826.8,2825.2,0.405504]
[1766085149770,2.4723,2826.7,2825.5,6.5627]
[1766085149935,3.0503,2826.7,2825.6,5.2418]
[1766085150132,6.27030825,2826.8,2825.8,13.64034172]
[1766085150133,5.8139,2826.8,2825.8,13.64034172]
[1766085150361,5.8139,2826.8,2825.9,0.46438023]
[1766085150531,5.8139,2826.8,2826.0,1.76435428]
[1766085150741,8.2862,2826.8,2826.0,1.76435428]
[1766085151169,0.001,2826.6,2826.0,1.76435428]
[1766085152072,0.001,2826.6,2825.9,1.04238023]
[1766085152073,0.001,2826.6,2825.9,7.07739126]
[1766085152236,0.001,2826.6,2824.9,1.19252231]
[1766085152237,2.4723,2826.3,2824.9,1.19252231]
[1766085152440,5.2359,2825.8,2825.0,3.53974886]
[1766085152661,5.2359,2826.5,2825.1,1.7853]
[1766085152968,0.001,2826.6,2825.0,4.11774886]
[1766085152969,0.578,2826.4,2825.4,7.0271]
[1766085153178,0.578,2826.4,2825.4,7.6051]
[1766085153380,7.7082,2826.3,2825.4,0.578]
[1766085153964,0.578,2826.4,2825.6,5.2418]
[1766085154265,7.7092,2826.6,2825.7,3.5389461]
[1766085154465,7.7082,2826.5,2825.6,3.53901805]
[1766085154637,7.7082,2826.5,2825.5,3.53914344]
[1766085154840,7.7082,2826.5,2825.6,3.53902638]
[1766085155465,0.82972,2826.6,2825.6,3.53902638]
[1766085155466,0.82972,2826.6,2825.7,1.7853]
[1766085155668,0.001,2826.6,2825.8,7.0271]
[1766085155869,0.001,2826.6,2825.8,7.6051]
[1766085156068,7.7092,2826.6,2825.8,0.578]
[1766085156635,7.7092,2826.6,2825.8,7.6556129]
[1766085156868,0.001,2826.6,2825.8,14.6827129]
[1766085157171,0.001,2826.6,2825.8,9.47778907]
[1766085157339,0.001,2826.6,2825.9,5.2418]
[1766085158167,0.001,2826.6,2825.8,9.4409129]
[1766085158168,0.001,2826.6,2826.1,7.0768904]
[1766085158468,0.001,2826.6,2825.9,3.53863197]
[1766085158773,7.7092,2826.6,2825.8,0.578]
[1766085159203,0.579,2826.6,2826.0,3.53853065]
[1766085159381,0.579,2826.6,2826.0,3.53856244]
[1766085159542,0.579,2826.6,2825.9,8.78043113]
[1766085159737,0.579,2826.6,2825.6,1.04438023]
[1766085160043,7.7082,2826.5,2825.8,3.53877769]
[1766085160244,8.53692,2826.5,2825.7,3.53889246]
[1766085160764,0.579,2826.6,2825.7,8.78069246]
[1766085160933,8.2872,2826.6,2825.7,3.53889246]
[1766085161141,7.7082,2826.5,2825.6,4.1190416]
[1766085161684,0.578,2826.9,2826.1,5.2418]
[1766085161836,0.578,2826.9,2826.1,7.55128]
[1766085162369,0.578,2826.9,2826.2,3.53832]
[1766085163350,0.578,2826.9,2826.1,9.30437106]
[1766085164187,0.578,2826.9,2826.1,4.06257106]
[1766085164351,2.3948,2826.8,2826.1,0.52418]
[1766085164551,2.3948,2826.8,2826.1,3.53843661]
[1766085164752,5.2299,2826.7,2826.0,3.53854534]
[1766085164982,5.2299,2826.7,2826.1,3.53838804]
[1766085165353,7.6247,2826.7,2826.0,3.53850678]
[1766085166283,7.6247,2826.7,2825.9,3.53869563]
[1766085166480,7.6247,2826.7,2825.8,12.636391]
[1766085166646,7.6247,2826.7,2825.8,14.18299812]
[1766085168182,7.6247,2826.7,2825.8,15.96829812]
[1766085168597,2.3948,2826.4,2825.6,3.5410194]
[1766085168895,0.579,2826.9,2825.6,3.5410194]
[1766085168896,0.578,2826.7,2826.0,5.5588]
[1766085169253,0.578,2826.7,2825.8,3.53876053]
[1766085169471,2.3948,2826.6,2825.7,3.53889164]
[1766085169680,7.6247,2826.6,2825.8,3.53879895]
[1766085171991,7.6247,2826.6,2825.8,7.07761981]
[1766085172216,0.578,2826.7,2825.8,8.86291981]
[1766085172415,0.578,2826.7,2825.9,5.5588]
[1766085172725,0.001,2826.9,2826.3,5.5588]
[1766085173023,7.6247,2826.8,2826.0,3.5385088]
[1766085173223,5.2299,2826.6,2825.9,4.11663047]
[1766085173408,7.6247,2826.6,2825.9,4.11663047]
[1766085173730,2.3948,2826.4,2825.7,3.53882393]
[1766085173888,2.3948,2826.4,2825.6,4.5833969]
[1766085174094,5.2299,2826.5,2825.6,6.60318023]
[1766085174316,5.2299,2826.5,2825.7,3.53890568]
[1766085174517,6.050449,2826.5,2825.8,3.53880157]
[1766085174824,6.050449,2826.5,2825.6,6.60318023]
[1766085175024,2.3948,2826.2,2825.6,0.58]
[1766085175209,0.578,2826.4,2825.6,0.002]
[1766085175913,7.6247,2826.2,2825.6,0.002]
[1766085176091,8.38717,2826.1,2825.6,0.002]
[1766085176286,5.2299,2825.8,2825.0,3.53974252]
[1766085176490,5.2299,2825.8,2825.1,3.53969525]
[1766085176491,2.3948,2825.7,2825.1,3.53969525]
[1766085176728,2.3948,2825.7,2825.0,0.46438023]
[1766085177303,2.3948,2825.7,2824.9,7.08180525]
[1766085177931,5.2299,2825.9,2825.0,7.3461]
[1766085178218,7.6247,2825.6,2824.9,0.002]
[1766085178419,8.2027,2825.6,2824.9,0.002]
[1766085179225,0.578,2825.6,2824.9,0.002]
[1766085179520,8.2027,2825.7,2824.9,5.5608]
[1766085179891,8.2027,2825.7,2824.9,0.002]
[1766085179892,0.578,2825.7,2824.9,0.002]
[1766085180093,5.2299,2825.4,2824.5,0.002]
[1766085180297,7.6247,2824.9,2824.5,0.002]
[1766085180620,0.578,2825.6,2824.7,8.8676979]
[1766085180801,0.46438023,2825.7,2824.5,3.54241739]
[1766085180802,7.70282361,2825.8,2824.9,7.07989662]
[1766085181118,0.07812361,2826.2,2824.9,7.07989662]
[1766085181119,8.79058023,2826.1,2825.1,7.0061]
[1766085181318,8.3262,2826.1,2825.2,5.2188]
[1766085181535,0.578,2826.1,2825.3,1.7873]
[1766085181689,0.578,2826.1,2825.4,5.2188]
[1766085182125,0.07912361,2826.6,2825.4,5.2188]
[1766085182296,5.2467,2826.2,2825.1,5.7968]
[1766085182823,5.2467,2826.2,2825.2,7.0061]
[1766085182824,2.5015,2826.1,2825.2,7.0061]
[1766085183022,8.3262,2826.1,2825.3,7.83730426]
[1766085183398,8.3262,2826.1,2825.4,0.002]
[1766085183595,0.578,2826.1,2825.1,0.46438023]
[1766085183957,0.07912361,2826.6,2826.2,0.578]
[1766085184099,0.07812361,2826.3,2825.4,7.006]
[1766085184299,0.07812361,2825.9,2825.4,1.76247172]
[1766085184607,0.07812361,2825.7,2825.4,1.76247172]
[1766085184917,0.07812361,2825.5,2825.4,5.76617381]
[1766085185116,0.07812361,2826.4,2825.8,1.7091]
[1766085185308,0.07812361,2826.4,2825.8,0.578]
[1766085185309,0.07812361,2826.2,2825.8,0.578]
[1766085186121,0.07812361,2826.0,2825.4,14.00654372]
[1766085186298,0.07812361,2826.0,2825.5,0.46438023]
[1766085186920,0.07812361,2826.0,2825.6,3.53907134]
[1766085187122,0.07812361,2826.4,2825.7,2.17348023]
[1766085187312,0.07812361,2826.4,2825.8,5.2188]
[1766085187694,0.07812361,2826.2,2825.6,0.40034516]
[1766085187899,7.82632361,2826.2,2825.6,0.46438023]
[1766085188123,0.07812361,2826.2,2825.6,0.46438023]
[1766085188327,0.07812361,2826.2,2825.6,7.39228023]
[1766085188500,0.07812361,2826.4,2825.6,7.39228023]
[1766085188698,0.07812361,2826.4,2825.6,0.46438023]
[1766085188904,0.07812361,2826.4,2825.6,1.21865291]
[1766085189199,0.07812361,2826.4,2825.7,3.5389461]
[1766085189615,7.7482,2826.3,2825.7,0.46438023]
[1766085190009,2.5015,2826.3,2825.7,0.46438023]
[1766085190222,0.65612361,2826.4,2825.7,0.46438023]
[1766085190432,0.07812361,2826.4,2825.8,5.97325042]
[1766085190616,0.07912361,2826.6,2825.8,2.46355042]
[1766085190820,0.07912361,2826.6,2825.8,0.75445042]
[1766085191127,0.001,2826.9,2826.2,6.9269]
[1766085191433,0.001,2826.9,2826.2,0.578]
[1766085191602,2.5015,2826.8,2826.2,0.578]
[1766085191795,0.001,2826.9,2826.2,5.7968]
[1766085191998,7.7492,2826.9,2826.2,0.578]
[1766085192198,7.7482,2826.8,2826.2,0.578]
[1766085192411,0.07812361,2826.7,2826.0,0.46438023]
[1766085193063,7.90612361,2826.7,2825.6,0.002]
[1766085193351,7.90612361,2826.7,2825.7,7.76931966]
[1766085193658,7.90612361,2826.5,2825.7,0.35411966]
[1766085195136,7.828,2826.5,2825.8,7.07764172]
[1766085195356,7.828,2826.5,2825.8,7.86745588]
[1766085196063,0.07812361,2826.7,2826.0,5.7071]
[1766085196222,5.44912361,2826.7,2825.9,0.578]
[1766085196427,2.457,2826.6,2825.8,4.32863502]
[1766085196744,7.828,2826.5,2825.8,4.32863502]
[1766085196986,2.457,2826.5,2825.8,0.46638023]
[1766085197192,7.828,2826.4,2825.8,0.002]
[1766085197712,8.406,2826.4,2825.8,0.002]
[1766085198210,0.578,2826.4,2825.8,0.002]
[1766085198565,0.07912361,2826.7,2825.8,7.4172]
[1766085198807,0.578,2826.6,2825.9,8.86470808]
[1766085199180,0.578,2826.6,2826.1,10.95352069]
[1766085199685,0.001,2826.9,2826.1,14.49196589]
[1766085199886,0.001,2826.9,2826.2,7.1191]
[1766085200806,0.001,2826.9,2826.1,7.65476589]
[1766085201010,5.371,2826.7,2825.9,5.45252448]
[1766085201212,2.53512361,2826.6,2825.9,0.46438023]
[1766085201508,2.53512361,2826.6,2825.8,0.002]
[1766085201509,7.90612361,2826.6,2825.8,0.002]
[1766085202313,2.457,2826.1,2825.8,0.002]
[1766085202519,2.457,2826.1,2825.6,0.002]
[1766085202520,7.828,2826.1,2825.6,0.002]
[1766085202699,0.65112361,2826.2,2825.2,3.5395648]
[1766085202903,7.828,2825.7,2825.2,1.82627286]
[1766085203099,7.828,2825.7,2825.2,0.46438023]
[1766085203301,0.07812361,2825.5,2824.6,0.002]
[1766085203614,7.828,2825.3,2824.6,0.46638023]
[1766085203781,0.07812361,2825.5,2824.6,0.002]
[1766085203980,7.828,2825.2,2824.6,3.5423227]
[1766085204219,0.07812361,2825.5,2824.6,0.76838941]
[1766085204384,2.457,2825.1,2824.6,0.002]
[1766085204722,7.828,2825.1,2824.6,0.002]
[1766085205008,0.07812361,2825.3,2824.7,3.54019512]
[1766085205009,8.48312361,2825.3,2824.7,3.54019512]
[1766085205314,7.828,2825.2,2824.6,0.002]
[1766085205879,0.65512361,2825.3,2824.5,0.002]
[1766085206115,2.457,2825.1,2824.5,0.002]
[1766085206409,2.457,2825.1,2824.2,3.54271958]
[1766085206410,0.31121236,2825.1,2824.2,0.002]
[1766085206712,5.371,2824.9,2824.2,0.002]
[1766085206880,7.828,2824.7,2824.2,3.54276111]
[1766085207312,7.828,2824.7,2824.2,3.5428062]
[1766085207685,7.828,2824.7,2824.2,0.002]
[1766085207880,0.577,2824.9,2824.2,0.002]
[1766085208133,2.457,2824.5,2823.8,0.002]
[1766085208333,5.371,2824.4,2823.8,0.002]
[1766085208535,7.828,2824.4,2823.8,0.002]
[1766085208701,0.48362761,2824.8,2823.8,0.002]
[1766085208902,0.48362761,2824.8,2823.7,0.002]
[1766085208903,0.07812361,2824.1,2823.7,0.002]
[1766085209433,0.87654833,2824.1,2823.4,0.002]
[1766085209728,7.828,2823.8,2823.4,0.002]
[1766085210516,0.65512361,2824.1,2823.4,3.54382519]
[1766085210711,8.48312361,2824.1,2823.4,3.54382519]
[1766085210908,0.65512361,2824.1,2823.4,3.54380855]
[1766085211214,7.828,2824.0,2823.4,3.54376434]
[1766085211418,5.371,2824.0,2823.4,0.002]
[1766085211715,2.457,2823.9,2823.4,0.002]
[1766085211913,0.65512361,2824.1,2823.4,0.002]
[1766085211914,7.828,2823.8,2823.4,0.002]
[1766085212257,0.07812361,2824.1,2823.1,4.1191745]
[1766085212547,0.07812361,2824.1,2823.1,4.53111023]
[1766085212702,0.07812361,2824.1,2822.7,1.7161]
[1766085212703,2.457,2823.5,2822.7,3.54270446]
[1766085212905,0.07812361,2823.7,2822.8,3.5425598]
[1766085212906,2.457,2823.3,2822.8,3.5425598]
[1766085213106,2.457,2823.3,2822.9,0.46438023]
[1766085213624,5.371,2824.0,2822.9,0.46438023]
[1766085213828,5.371,2824.0,2823.1,7.1513]
[1766085214145,0.578,2824.2,2823.1,7.1519]
[1766085214432,5.44912361,2824.3,2823.1,7.1519]
[1766085214433,0.07812361,2824.3,2823.1,0.46438023]
[1766085214730,0.07812361,2824.3,2823.0,1.33195425]
[1766085214921,5.44912361,2824.3,2823.2,7.61628023]
[1766085215233,5.44912361,2824.3,2823.5,5.4304]
[1766085215234,0.07812361,2824.3,2823.5,5.4304]
[1766085215530,7.828,2824.4,2823.5,3.54167328]
[1766085215744,0.577,2824.5,2823.6,0.577]
[1766085215919,7.828,2824.4,2823.6,0.577]
[1766085216243,7.828,2824.4,2823.6,1.04138023]
[1766085216422,7.828,2824.4,2823.7,0.81247571]
[1766085216627,0.07812361,2825.2,2823.7,0.81247571]
[1766085216831,0.07812361,2824.8,2823.7,0.81247571]
[1766085217131,7.90612361,2824.8,2823.8,0.46438023]
[1766085217313,7.90612361,2824.8,2823.9,7.08240376]
[1766085217511,7.90612361,2824.8,2824.0,1.2978284]
[1766085218515,2.457,2825.9,2824.7,8.89836438]
[1766085218716,2.457,2825.9,2824.9,7.1541]
[1766085218717,7.828,2825.9,2824.9,7.1541]
[1766085218919,0.07812361,2826.0,2824.9,7.1541]
[1766085219205,7.828,2825.6,2824.8,0.577]
[1766085219411,7.828,2825.3,2824.6,4.5816607]
[1766085219643,7.828,2825.2,2824.6,0.577]
[1766085219847,7.828,2825.2,2824.7,0.46438023]
[1766085220209,7.828,2825.5,2824.7,0.46438023]
[1766085220509,2.457,2825.4,2824.6,1.04138023]
[1766085220714,7.828,2825.3,2824.6,4.11732334]
[1766085220951,7.828,2825.2,2824.6,0.577]
[1766085221135,0.38168,2825.4,2824.5,0.002]
[1766085221336,0.577,2825.2,2824.5,0.002]
[1766085221531,0.577,2825.2,2824.5,0.46638023]
[1766085221737,7.828,2825.4,2824.5,0.002]
[1766085222418,2.457,2825.3,2824.5,0.002]
[1766085222616,2.577,2825.2,2824.5,0.002]
[1766085223018,2.577,2825.2,2824.5,0.710315]
[1766085223220,7.941,2825.4,2824.5,6.562115]
[1766085223424,2.577,2825.4,2824.6,8.81512429]
[1766085224055,2.577,2825.4,2824.6,12.35544858]
[1766085224250,0.46438023,2825.6,2824.7,6.9969]
[1766085224559,0.46438023,2825.6,2824.7,8.88742803]
[1766085225260,0.46438023,2825.6,2824.8,6.9969]
[1766085225571,0.46438023,2825.6,2824.9,3.53994831]
[1766085225860,0.46438023,2825.6,2824.8,3.54005104]
[1766085225861,2.577,2825.5,2824.8,3.54005104]
[1766085226340,0.07812361,2825.8,2824.7,3.54016618]
[1766085226656,2.577,2825.4,2824.7,3.54016618]
[1766085226963,5.364,2825.2,2824.5,0.002]
[1766085227169,0.30413802,2825.4,2824.5,0.002]
[1766085227170,5.364,2825.3,2824.5,0.002]
[1766085227453,7.941,2824.8,2824.1,0.46438023]
[1766085227671,0.577,2825.2,2823.6,6.9969]
[1766085227842,5.364,2824.6,2824.0,3.54106815]
[1766085228019,7.937,2824.5,2823.9,4.00551964]
[1766085228357,5.364,2824.5,2823.7,0.577]
[1766085228547,5.364,2824.5,2823.8,3.54131647]
[1766085228750,5.364,2824.8,2823.7,0.98885774]
[1766085228945,5.364,2824.8,2823.6,0.577]
[1766085229132,5.364,2824.6,2823.4,0.002]
[1766085229333,0.577,2824.5,2823.8,3.54124326]
[1766085229657,5.941,2824.5,2823.5,7.0834071]
[1766085230155,5.941,2824.5,2823.5,3.54170355]
[1766085230459,5.364,2824.3,2823.5,5.00824474]
[1766085230680,7.941,2824.3,2823.5,5.00824474]
[1766085230968,7.941,2824.3,2823.5,8.54994829]
[1766085231126,0.577,2824.5,2823.5,15.55084829]
[1766085231748,7.941,2824.3,2823.5,5.00824474]
[1766085231955,2.577,2824.2,2823.5,5.00824474]
[1766085232150,2.577,2824.2,2823.5,8.54994829]
[1766085232728,5.364,2824.3,2823.6,0.85519483]
[1766085233040,5.941,2824.5,2823.7,0.577]
[1766085233236,7.941,2824.5,2823.7,0.577]
[1766085233441,0.54250384,2825.1,2823.9,1.7261]
[1766085233442,0.46438023,2824.9,2823.9,1.7261]
[1766085233751,0.84053802,2824.8,2824.0,7.0009]
[1766085233952,7.941,2824.7,2823.8,3.54126553]
[1766085234183,5.364,2824.7,2823.8,3.54126553]
[1766085234327,5.364,2824.1,2823.4,0.002]
[1766085234528,2.577,2824.2,2823.4,1.04338023]
[1766085234821,0.7941,2824.2,2823.8,3.5412982]
[1766085235025,0.46438023,2824.5,2823.8,3.5412982]
[1766085235571,0.577,2824.6,2823.6,3.54153455]
[1766085235726,0.46438023,2824.5,2823.4,0.002]
[1766085235932,5.364,2824.0,2823.4,0.002]
[1766085236145,7.941,2824.0,2823.4,0.002]
[1766085236457,0.577,2824.2,2823.5,7.0009]
[1766085237059,0.577,2824.2,2823.4,0.35660799]
[1766085237372,8.518,2824.2,2823.4,0.002]
[1766085237570,7.941,2824.2,2823.4,0.579]
[1766085237931,7.941,2824.2,2823.4,4.12077598]
[1766085238349,7.941,2824.2,2823.4,7.66260498]
[1766085238549,7.941,2824.2,2823.4,4.12077598]
[1766085239233,7.941,2824.2,2823.4,9.12916603]
[1766085239433,0.577,2824.4,2823.4,9.12916603]
[1766085239756,0.001,2824.5,2823.7,1.7261]
[1766085239931,0.001,2824.5,2823.8,3.54132728]
[1766085240128,0.001,2824.5,2823.8,7.08265456]
[1766085240456,0.001,2825.2,2824.4,5.2748]
[1766085240633,5.364,2824.9,2823.9,7.5769]
[1766085241040,2.577,2824.8,2823.9,7.5769]
[1766085241355,8.0865,2824.8,2823.9,7.5769]
[1766085241664,8.0865,2824.8,2824.0,0.46438023]
[1766085241912,8.95285,2824.8,2824.0,0.46438023]
[1766085242155,6.37585,2824.8,2824.0,0.46438023]
[1766085242340,8.86215,2824.8,2824.0,0.46438023]
[1766085243154,8.86215,2824.8,2824.0,4.00542837]
[1766085243553,0.07912361,2825.2,2824.1,7.112]
[1766085243554,0.577,2825.0,2824.1,7.112]
[1766085243957,7.9958,2824.9,2824.1,5.3869]
[1766085244149,7.9958,2824.9,2824.0,4.0053822]
[1766085244358,0.07812361,2824.8,2823.5,3.54168635]
[1766085244666,0.07812361,2824.8,2823.7,8.92593228]
[1766085244667,2.4863,2824.6,2823.7,8.92593228]
[1766085244968,4.02338659,2825.1,2823.6,1.7251]
[1766085244969,0.001,2825.7,2824.2,1.7251]
[1766085245129,0.001,2825.7,2824.8,5.3811]
[1766085245329,0.001,2825.7,2824.9,5.3811]
[1766085246153,2.4863,2825.5,2824.8,0.577]
[1766085246343,7.9958,2825.4,2824.8,0.577]
[1766085246546,0.001,2825.7,2824.8,0.577]
[1766085246758,7.9968,2825.7,2824.8,5.23910869]
[1766085247142,0.001,2825.7,2824.9,3.53992218]
[1766085247346,7.9958,2825.6,2824.9,3.53992218]
[1766085247761,5.5095,2825.6,2824.8,5.23914089]
[1766085247936,7.9958,2825.6,2824.8,5.23914089]
[1766085249164,8.79548,2825.6,2824.8,5.23914089]
[1766085249467,0.79968,2825.6,2824.8,1.69910558]
[1766085249672,7.9958,2825.5,2824.8,1.69910558]
[1766085249862,7.9958,2825.5,2824.8,5.23915367]
[1766085250040,7.9958,2825.5,2824.8,1.69910558]
[1766085250442,7.9958,2825.5,2824.8,5.23916169]
[1766085250643,0.001,2825.7,2825.1,5.3696]
[1766085250844,2.4863,2825.5,2824.8,5.23916169]
[1766085251040,0.001,2825.7,2824.8,5.23916169]
[1766085251244,7.9968,2825.7,2824.8,10.60666169]
[1766085251445,0.001,2825.7,2824.8,8.77923532]
[1766085251653,0.001,2825.7,2825.0,5.3675]
[1766085252373,0.001,2825.7,2825.0,8.90722637]
[1766085252942,0.001,2825.7,2825.0,11.99127265]
[1766085253876,0.001,2825.7,2825.0,8.45154628]
[1766085254054,0.001,2825.7,2825.0,6.8644]
[1766085254458,0.001,2825.7,2825.0,5.1393]
[1766085254658,0.001,2825.7,2825.0,10.40420671]
[1766085254869,0.001,2825.7,2825.1,6.8644]
[1766085255182,0.001,2825.7,2825.2,0.577]
[1766085255368,0.001,2825.7,2825.2,7.4414]
[1766085255570,0.001,2826.0,2825.5,6.8634]
[1766085255874,0.001,2826.2,2825.5,6.8634]
[1766085256077,0.46538023,2826.2,2825.5,6.8634]
[1766085256585,5.4243,2826.1,2825.2,0.577]
[1766085256758,2.5436,2825.6,2825.1,0.577]
[1766085257683,5.4243,2825.7,2825.1,0.577]
[1766085258066,5.4243,2825.7,2825.1,4.11667667]
[1766085258384,5.4243,2825.7,2825.1,0.577]
[1766085258591,2.5436,2825.4,2824.7,3.54010707]
[1766085258898,7.9679,2825.4,2824.8,3.54006284]
[1766085259476,7.9679,2825.4,2824.7,3.54018026]
[1766085259679,7.9679,2825.4,2824.7,3.54019828]
[1766085260052,0.85439,2825.4,2824.6,4.11629989]
[1766085260253,5.88868023,2825.1,2823.4,3.5437984]
[1766085260449,0.07812361,2825.5,2823.6,3.54157812]
[1766085260450,0.576,2825.0,2823.6,3.54157812]
[1766085260652,0.46438023,2824.7,2823.6,3.54157812]
[1766085261183,0.576,2824.9,2823.7,1.7231]
[1766085261382,7.9679,2824.6,2823.6,8.68087812]
[1766085261565,0.576,2824.5,2823.7,1.22244846]
[1766085261967,8.5439,2824.6,2823.7,1.22244846]
[1766085262161,8.5439,2824.6,2823.7,2.94554846]
[1766085262369,8.5439,2824.6,2823.8,5.1393]
[1766085262568,0.576,2824.6,2823.9,8.68050188]
[1766085262769,0.576,2824.6,2823.9,10.19723144]
[1766085262963,8.5439,2824.6,2823.9,3.54120188]
[1766085263282,0.576,2824.6,2824.0,5.1393]
[1766085263483,0.576,2824.6,2823.9,3.54120188]
[1766085263689,3.1196,2824.6,2823.9,3.54120188]
[1766085263853,2.5436,2824.6,2823.9,3.54120188]
[1766085264053,3.39799,2824.6,2823.9,3.54120188]
[1766085264586,5.4243,2824.4,2823.7,1.22244846]
[1766085264768,2.5396,2824.3,2823.5,0.002]
[1766085265187,2.5396,2824.3,2823.7,3.5413612]
[1766085265490,5.4243,2824.4,2823.6,10.87233123]
[1766085265988,6.27869,2824.6,2823.6,10.87233123]
[1766085266186,6.27869,2824.6,2823.7,3.54138958]
[1766085266358,5.4243,2824.4,2823.8,3.54127508]
[1766085266557,5.4243,2824.4,2823.6,3.54153711]
[1766085266558,0.576,2824.4,2823.7,1.7271]
[1766085266759,0.576,2824.4,2823.8,5.1393]
[1766085267167,0.576,2824.4,2823.7,1.7271]
[1766085267371,0.57200001,2824.4,2823.6,3.54153711]
[1766085267592,0.57200001,2824.4,2823.6,4.99449925]
[1766085268380,0.57200001,2824.4,2823.5,8.68299019]
[1766085268568,8.53990001,2824.4,2823.5,8.68299019]
[1766085268773,8.53990001,2824.4,2823.6,5.1393]
[1766085269163,0.57200001,2824.4,2823.5,3.54369019]